[Event "Early-Titled-Tuesday-Blitz-January-23-2024"]
[Site "Chess.com"]
[Date "2024.01.23"]
[Round "9"]
[White "eagleclaw07"]
[Black "FMCASTE"]
[Result "1-0"]
[WhiteElo "2633"]
[BlackElo "2500"]
[TimeControl "180+1"]
[EndTime "9:41:56 PST"]
[Termination "eagleclaw07 won by resignation"]

1. d4 {[%clk 0:02:57.8]} 1... g6 {[%clk 0:03:00.9]} 2. Nf3 {[%clk 0:02:57.9]}
2... Bg7 {[%clk 0:03:01.8]} 3. e4 {[%clk 0:02:57.6]} 3... d6 {[%clk 0:03:02.7]}
4. Nc3 {[%clk 0:02:57]} 4... a6 {[%clk 0:03:02.9]} 5. a4 {[%clk 0:02:56.5]} 5...
b6 {[%clk 0:03:02.5]} 6. Be2 {[%clk 0:02:56.7]} 6... e6 {[%clk 0:03:03.1]} 7.
O-O {[%clk 0:02:57.6]} 7... Ne7 {[%clk 0:03:02.5]} 8. Re1 {[%clk 0:02:58.5]}
8... h6 {[%clk 0:03:02.8]} 9. h3 {[%clk 0:02:58.9]} 9... g5 {[%clk 0:03:02.8]}
10. Bf1 {[%clk 0:02:59.1]} 10... Ng6 {[%clk 0:03:03.3]} 11. Ne2 {[%clk
0:02:58.2]} 11... Bb7 {[%clk 0:03:03.8]} 12. Ng3 {[%clk 0:02:57.7]} 12... Nd7
{[%clk 0:02:58]} 13. c3 {[%clk 0:02:57.8]} 13... Nf6 {[%clk 0:02:56.5]} 14. d5
{[%clk 0:02:56.2]} 14... exd5 {[%clk 0:02:53.6]} 15. exd5+ {[%clk 0:02:54.7]}
15... Kf8 {[%clk 0:02:52.3]} 16. c4 {[%clk 0:02:53.9]} 16... Bc8 {[%clk
0:02:49.8]} 17. Be3 {[%clk 0:02:50.4]} 17... g4 {[%clk 0:02:49.8]} 18. hxg4
{[%clk 0:02:47.2]} 18... Bxg4 {[%clk 0:02:50.7]} 19. Bd4 {[%clk 0:02:45.3]}
19... h5 {[%clk 0:02:46.2]} 20. Bd3 {[%clk 0:02:40]} 20... Nf4 {[%clk
0:02:44.8]} 21. Bf5 {[%clk 0:02:38.6]} 21... h4 {[%clk 0:02:26.2]} 22. Bxg4
{[%clk 0:02:33.6]} 22... hxg3 {[%clk 0:02:25.6]} 23. fxg3 {[%clk 0:02:32.8]}
23... Nxg2 {[%clk 0:02:16.6]} 24. Kxg2 {[%clk 0:02:30.6]} 24... Nxg4 {[%clk
0:02:16.6]} 25. Bxg7+ {[%clk 0:02:30.6]} 25... Kxg7 {[%clk 0:02:16.1]} 26. Qd4+
{[%clk 0:02:30.9]} 26... Nf6 {[%clk 0:02:09.4]} 27. Nh4 {[%clk 0:02:24.2]} 27...
Qd7 {[%clk 0:01:57.5]} 28. Rf1 {[%clk 0:02:23.9]} 28... Rxh4 {[%clk 0:01:46.4]}
29. Qxf6+ {[%clk 0:02:23.6]} 29... Kf8 {[%clk 0:01:36.6]} 30. Qxh4 {[%clk
0:02:23.7]} 30... Kg7 {[%clk 0:01:34.6]} 31. Qg5+ {[%clk 0:02:23.5]} 31... Kf8
{[%clk 0:01:33.4]} 32. Qh6+ {[%clk 0:02:22]} 32... Kg8 {[%clk 0:01:33.4]} 33.
Rh1 {[%clk 0:02:21.5]} 1-0

[Event "Early-Titled-Tuesday-Blitz-January-23-2024"]
[Site "Chess.com"]
[Date "2024.01.23"]
[Round "9"]
[White "RCone"]
[Black "ClaudiaSof"]
[Result "1-0"]
[WhiteElo "2418"]
[BlackElo "2256"]
[TimeControl "180+1"]
[EndTime "9:42:02 PST"]
[Termination "RCone won by resignation"]

1. e4 {[%clk 0:02:47.2]} 1... c5 {[%clk 0:02:38.6]} 2. Nc3 {[%clk 0:02:44.7]}
2... Nc6 {[%clk 0:02:38.6]} 3. Bb5 {[%clk 0:02:42.3]} 3... Nd4 {[%clk
0:02:36.9]} 4. Nf3 {[%clk 0:02:41.2]} 4... Nxb5 {[%clk 0:02:35.6]} 5. Nxb5
{[%clk 0:02:42.1]} 5... d6 {[%clk 0:02:33.4]} 6. d4 {[%clk 0:02:41.1]} 6... a6
{[%clk 0:02:31.9]} 7. Nc3 {[%clk 0:02:40.7]} 7... cxd4 {[%clk 0:02:31.7]} 8.
Qxd4 {[%clk 0:02:41.6]} 8... Nf6 {[%clk 0:02:30.4]} 9. e5 {[%clk 0:02:40.9]}
9... dxe5 {[%clk 0:02:19.1]} 10. Qxd8+ {[%clk 0:02:41.8]} 10... Kxd8 {[%clk
0:02:18.8]} 11. Nxe5 {[%clk 0:02:42.6]} 11... Ke8 {[%clk 0:02:19.1]} 12. Be3
{[%clk 0:02:41.4]} 12... e6 {[%clk 0:02:18.6]} 13. O-O-O {[%clk 0:02:40.7]}
13... Be7 {[%clk 0:02:18.3]} 14. Bb6 {[%clk 0:02:36.1]} 14... Nd7 {[%clk
0:02:11.1]} 15. Nxd7 {[%clk 0:02:32.5]} 15... Bxd7 {[%clk 0:02:10.4]} 16. Ne4
{[%clk 0:02:31.1]} 16... Bc6 {[%clk 0:02:05.9]} 17. Nd6+ {[%clk 0:02:29.1]}
17... Bxd6 {[%clk 0:02:05.2]} 18. Rxd6 {[%clk 0:02:30]} 18... Ke7 {[%clk
0:01:57.6]} 19. Rhd1 {[%clk 0:02:29.4]} 19... Bd5 {[%clk 0:01:57.6]} 20. Bc5
{[%clk 0:02:24.9]} 20... Rac8 {[%clk 0:01:48.8]} 21. R6xd5+ {[%clk 0:02:21.4]}
21... Kf6 {[%clk 0:01:44.7]} 22. Bd4+ {[%clk 0:02:20.7]} 22... Ke7 {[%clk
0:01:41.2]} 23. Rg5 {[%clk 0:02:11.5]} 23... Rc4 {[%clk 0:01:28]} 24. Bxg7
{[%clk 0:02:00.1]} 24... Rg8 {[%clk 0:01:26.8]} 25. Bf6+ {[%clk 0:02:00.2]}
25... Kf8 {[%clk 0:01:26.6]} 26. Be7+ {[%clk 0:01:58.6]} 26... Kxe7 {[%clk
0:01:24.8]} 27. Rxg8 {[%clk 0:01:59.5]} 1-0

[Event "Early-Titled-Tuesday-Blitz-January-23-2024"]
[Site "Chess.com"]
[Date "2024.01.23"]
[Round "9"]
[White "BasilSmash"]
[Black "AlexTruskavetsky"]
[Result "0-1"]
[WhiteElo "2547"]
[BlackElo "2702"]
[TimeControl "180+1"]
[EndTime "9:42:23 PST"]
[Termination "AlexTruskavetsky won by resignation"]

1. e4 {[%clk 0:03:00.9]} 1... c5 {[%clk 0:02:58.5]} 2. Nf3 {[%clk 0:02:59.1]}
2... Nc6 {[%clk 0:02:58]} 3. d4 {[%clk 0:02:59.1]} 3... cxd4 {[%clk 0:02:58.9]}
4. Nxd4 {[%clk 0:02:59.6]} 4... Nf6 {[%clk 0:02:59.4]} 5. Nc3 {[%clk 0:03:00.1]}
5... e6 {[%clk 0:02:59.8]} 6. Ndb5 {[%clk 0:03:00.2]} 6... Bb4 {[%clk
0:02:59.6]} 7. a3 {[%clk 0:03:00.3]} 7... Bxc3+ {[%clk 0:02:59.6]} 8. Nxc3
{[%clk 0:03:01.2]} 8... d5 {[%clk 0:02:59.9]} 9. exd5 {[%clk 0:03:01.9]} 9...
exd5 {[%clk 0:03:00.8]} 10. Bd3 {[%clk 0:03:01.4]} 10... O-O {[%clk 0:02:59.4]}
11. O-O {[%clk 0:03:01]} 11... h6 {[%clk 0:02:59.5]} 12. Bf4 {[%clk 0:02:58.8]}
12... Bg4 {[%clk 0:02:58.8]} 13. Qd2 {[%clk 0:02:56.4]} 13... d4 {[%clk
0:02:59]} 14. Ne4 {[%clk 0:02:54.3]} 14... Nd5 {[%clk 0:02:59]} 15. Rfe1 {[%clk
0:02:35]} 15... Re8 {[%clk 0:02:48.8]} 16. h3 {[%clk 0:02:31.1]} 16... Bf5
{[%clk 0:02:43.6]} 17. Nd6 {[%clk 0:02:23]} 17... Rxe1+ {[%clk 0:02:40.4]} 18.
Rxe1 {[%clk 0:02:23.9]} 18... Bxd3 {[%clk 0:02:40.5]} 19. Re8+ {[%clk
0:02:23.8]} 19... Qxe8 {[%clk 0:02:38.6]} 20. Nxe8 {[%clk 0:02:24.7]} 20... Bxc2
{[%clk 0:02:30.5]} 21. Nd6 {[%clk 0:02:12.1]} 21... d3 {[%clk 0:02:30]} 22. Nxb7
{[%clk 0:01:56]} 22... Nd4 {[%clk 0:02:23.1]} 23. Be3 {[%clk 0:00:52.5]} 23...
Nb3 {[%clk 0:02:20]} 24. Qe1 {[%clk 0:00:48.9]} 24... Nxe3 {[%clk 0:02:19.1]}
25. Qxe3 {[%clk 0:00:49.1]} 25... d2 {[%clk 0:02:18.7]} 0-1

[Event "Early-Titled-Tuesday-Blitz-January-23-2024"]
[Site "Chess.com"]
[Date "2024.01.23"]
[Round "9"]
[White "KVAIDAN"]
[Black "Muslim_player_05"]
[Result "0-1"]
[WhiteElo "2355"]
[BlackElo "2506"]
[TimeControl "180+1"]
[EndTime "9:42:29 PST"]
[Termination "Muslim_player_05 won by resignation"]

1. f4 {[%clk 0:03:00.9]} 1... d5 {[%clk 0:02:56.7]} 2. Nf3 {[%clk 0:03:00.7]}
2... g6 {[%clk 0:02:56.7]} 3. e3 {[%clk 0:03:00.7]} 3... Bg7 {[%clk 0:02:56.1]}
4. Be2 {[%clk 0:03:01.2]} 4... Nh6 {[%clk 0:02:51.4]} 5. O-O {[%clk 0:03:01.7]}
5... O-O {[%clk 0:02:51.5]} 6. d3 {[%clk 0:03:02.1]} 6... c5 {[%clk 0:02:45.5]}
7. Qe1 {[%clk 0:03:02.4]} 7... Nc6 {[%clk 0:02:43.1]} 8. c3 {[%clk 0:03:03]}
8... Nf5 {[%clk 0:02:43.2]} 9. e4 {[%clk 0:03:02.9]} 9... dxe4 {[%clk
0:02:41.3]} 10. dxe4 {[%clk 0:03:03.1]} 10... Nd6 {[%clk 0:02:41.9]} 11. Nbd2
{[%clk 0:03:02.5]} 11... e5 {[%clk 0:02:40.3]} 12. Qg3 {[%clk 0:02:52]} 12...
exf4 {[%clk 0:02:37.3]} 13. Qxf4 {[%clk 0:02:51.7]} 13... Qe7 {[%clk 0:02:37.5]}
14. Bd3 {[%clk 0:02:33.7]} 14... Rd8 {[%clk 0:02:31.3]} 15. Bc2 {[%clk 0:02:29]}
15... b5 {[%clk 0:02:28.8]} 16. Ng5 {[%clk 0:02:15.6]} 16... Ne5 {[%clk
0:02:16.6]} 17. Ndf3 {[%clk 0:02:10.9]} 17... h6 {[%clk 0:02:06]} 18. Nh3 {[%clk
0:01:54.6]} 18... Nxf3+ {[%clk 0:01:51.9]} 19. Qxf3 {[%clk 0:01:53]} 19... g5
{[%clk 0:01:52.5]} 20. Nf2 {[%clk 0:01:49.9]} 20... Bb7 {[%clk 0:01:50.6]} 21.
Be3 {[%clk 0:01:47.5]} 21... Nc4 {[%clk 0:01:43.6]} 22. Bxc5 {[%clk 0:01:44.2]}
22... Qxc5 {[%clk 0:01:42.8]} 23. Qxf7+ {[%clk 0:01:41.3]} 23... Kxf7 {[%clk
0:01:41.9]} 24. Kh1 {[%clk 0:01:39.3]} 24... Kg8 {[%clk 0:01:40]} 25. Nd3 {[%clk
0:01:37]} 25... Qe7 {[%clk 0:01:38.2]} 26. Rae1 {[%clk 0:01:35.2]} 26... Rf8
{[%clk 0:01:36.1]} 27. Nf2 {[%clk 0:01:32.1]} 27... Nd2 {[%clk 0:01:34.9]} 28.
Rg1 {[%clk 0:01:31.1]} 28... Rxf2 {[%clk 0:01:34.4]} 0-1

[Event "Early-Titled-Tuesday-Blitz-January-23-2024"]
[Site "Chess.com"]
[Date "2024.01.23"]
[Round "9"]
[White "otrov-11"]
[Black "Kotofeyca"]
[Result "1-0"]
[WhiteElo "2514"]
[BlackElo "2365"]
[TimeControl "180+1"]
[EndTime "9:42:31 PST"]
[Termination "otrov-11 won by resignation"]

1. d4 {[%clk 0:03:00.9]} 1... d5 {[%clk 0:02:59.9]} 2. c4 {[%clk 0:03:01.5]}
2... c6 {[%clk 0:03:00.5]} 3. g3 {[%clk 0:03:01.6]} 3... Bf5 {[%clk 0:02:59.9]}
4. Nf3 {[%clk 0:03:01.6]} 4... e6 {[%clk 0:03:00.3]} 5. Nc3 {[%clk 0:03:01.9]}
5... Nd7 {[%clk 0:03:00.3]} 6. Qb3 {[%clk 0:03:01.4]} 6... Qb6 {[%clk
0:02:54.8]} 7. c5 {[%clk 0:03:01.9]} 7... Qxb3 {[%clk 0:02:54.8]} 8. axb3 {[%clk
0:03:02.5]} 8... a6 {[%clk 0:02:50.9]} 9. b4 {[%clk 0:03:02.6]} 9... f6 {[%clk
0:02:38.3]} 10. b5 {[%clk 0:03:00.4]} 10... cxb5 {[%clk 0:02:35]} 11. Nxb5
{[%clk 0:03:01.3]} 11... Rc8 {[%clk 0:02:34.5]} 12. Nc3 {[%clk 0:02:59.6]} 12...
e5 {[%clk 0:02:25.8]} 13. b4 {[%clk 0:02:57.5]} 13... Be4 {[%clk 0:02:02.2]} 14.
Nxe4 {[%clk 0:02:46.8]} 14... dxe4 {[%clk 0:02:01.4]} 15. Nd2 {[%clk 0:02:47.7]}
15... exd4 {[%clk 0:01:56.7]} 16. Nxe4 {[%clk 0:02:48]} 16... b6 {[%clk
0:01:53.1]} 17. Bg2 {[%clk 0:02:28.5]} 17... bxc5 {[%clk 0:01:50.7]} 18. bxc5
{[%clk 0:02:29.4]} 18... Nxc5 {[%clk 0:01:44.6]} 19. Nxc5 {[%clk 0:02:23.9]}
19... Bxc5 {[%clk 0:01:39.1]} 20. O-O {[%clk 0:02:24.4]} 20... Ne7 {[%clk
0:01:31]} 21. Rxa6 {[%clk 0:02:18.6]} 21... Kf7 {[%clk 0:01:18.3]} 22. h4 {[%clk
0:02:15.3]} 22... Rhd8 {[%clk 0:01:15.5]} 23. h5 {[%clk 0:02:12.7]} 23... d3
{[%clk 0:01:05.1]} 24. exd3 {[%clk 0:02:11]} 24... Rxd3 {[%clk 0:01:04.7]} 25.
Bf4 {[%clk 0:02:11.8]} 25... Bd6 {[%clk 0:00:58.3]} 26. Rxd6 {[%clk 0:02:06.1]}
1-0

[Event "Early-Titled-Tuesday-Blitz-January-23-2024"]
[Site "Chess.com"]
[Date "2024.01.23"]
[Round "9"]
[White "VinzentSpitzl"]
[Black "Bkmzzzzz"]
[Result "1-0"]
[WhiteElo "2529"]
[BlackElo "2396"]
[TimeControl "180+1"]
[EndTime "9:43:09 PST"]
[Termination "VinzentSpitzl won by checkmate"]

1. e4 {[%clk 0:03:00.9]} 1... d6 {[%clk 0:02:59.8]} 2. d4 {[%clk 0:03:00.6]}
2... Nf6 {[%clk 0:03:00.1]} 3. Nc3 {[%clk 0:03:01.3]} 3... e5 {[%clk 0:02:58.9]}
4. Nge2 {[%clk 0:03:00.1]} 4... Be7 {[%clk 0:02:58.1]} 5. h3 {[%clk 0:03:00.3]}
5... c6 {[%clk 0:02:58.2]} 6. Be3 {[%clk 0:03:00.6]} 6... b5 {[%clk 0:02:58.4]}
7. a3 {[%clk 0:03:00.8]} 7... a5 {[%clk 0:02:58.6]} 8. g4 {[%clk 0:02:55.7]}
8... Bb7 {[%clk 0:02:37.5]} 9. Bg2 {[%clk 0:02:55.6]} 9... b4 {[%clk 0:02:30]}
10. axb4 {[%clk 0:02:55.5]} 10... axb4 {[%clk 0:02:30.9]} 11. Rxa8 {[%clk
0:02:56]} 11... Bxa8 {[%clk 0:02:31.8]} 12. Nb1 {[%clk 0:02:56.4]} 12... exd4
{[%clk 0:02:25.5]} 13. Nxd4 {[%clk 0:02:56.4]} 13... c5 {[%clk 0:02:24.5]} 14.
Nf5 {[%clk 0:02:56.6]} 14... Bxe4 {[%clk 0:02:21.7]} 15. Bxe4 {[%clk 0:02:49.6]}
15... Nxe4 {[%clk 0:02:22.6]} 16. Nxg7+ {[%clk 0:02:49.6]} 16... Kd7 {[%clk
0:02:19.8]} 17. Qd5 {[%clk 0:02:39.8]} 17... Nf6 {[%clk 0:02:17.2]} 18. Qxf7
{[%clk 0:02:35.3]} 18... Rf8 {[%clk 0:02:10.6]} 19. Qe6+ {[%clk 0:02:35]} 19...
Kc6 {[%clk 0:02:11.2]} 20. Nf5 {[%clk 0:02:29.3]} 20... Nd5 {[%clk 0:02:02.1]}
21. O-O {[%clk 0:02:14]} 21... Bf6 {[%clk 0:01:52.5]} 22. Rd1 {[%clk 0:02:06.2]}
22... Nc7 {[%clk 0:00:47.9]} 23. Rxd6+ {[%clk 0:01:57.9]} 23... Kb5 {[%clk
0:00:47.8]} 24. Na3+ {[%clk 0:01:41.5]} 24... Ka5 {[%clk 0:00:43.6]} 25. Nc4+
{[%clk 0:01:38.1]} 25... Kb5 {[%clk 0:00:42.9]} 26. Rb6+ {[%clk 0:01:37.9]}
26... Ka4 {[%clk 0:00:41.6]} 27. b3# {[%clk 0:01:38.3]} 1-0

[Event "Early-Titled-Tuesday-Blitz-January-23-2024"]
[Site "Chess.com"]
[Date "2024.01.23"]
[Round "9"]
[White "platy3"]
[Black "CaspiIsrael"]
[Result "1-0"]
[WhiteElo "2870"]
[BlackElo "2688"]
[TimeControl "180+1"]
[EndTime "9:43:29 PST"]
[Termination "platy3 won by resignation"]

1. e4 {[%clk 0:03:00.9]} 1... e5 {[%clk 0:02:59]} 2. Nf3 {[%clk 0:02:57.9]} 2...
Nc6 {[%clk 0:02:59.6]} 3. Bc4 {[%clk 0:02:55.6]} 3... Nf6 {[%clk 0:02:59.5]} 4.
d3 {[%clk 0:02:55.8]} 4... Bc5 {[%clk 0:02:59.1]} 5. a4 {[%clk 0:02:55.1]} 5...
d6 {[%clk 0:02:57.8]} 6. O-O {[%clk 0:02:54.8]} 6... O-O {[%clk 0:02:57.7]} 7.
h3 {[%clk 0:02:53.4]} 7... h6 {[%clk 0:02:57]} 8. Be3 {[%clk 0:02:53.7]} 8...
Bxe3 {[%clk 0:02:52]} 9. fxe3 {[%clk 0:02:54.6]} 9... Be6 {[%clk 0:02:34.6]} 10.
Bxe6 {[%clk 0:02:54]} 10... fxe6 {[%clk 0:02:35.5]} 11. Nbd2 {[%clk 0:02:54.5]}
11... a5 {[%clk 0:02:34.6]} 12. c3 {[%clk 0:02:54.6]} 12... Qe8 {[%clk
0:02:33.7]} 13. Qb3 {[%clk 0:02:54.7]} 13... b6 {[%clk 0:02:31.9]} 14. Rf2
{[%clk 0:02:55.2]} 14... Kh7 {[%clk 0:02:31.3]} 15. Raf1 {[%clk 0:02:55.4]}
15... Qd7 {[%clk 0:02:27.5]} 16. g4 {[%clk 0:02:55.5]} 16... Ng8 {[%clk
0:02:24.7]} 17. d4 {[%clk 0:02:51]} 17... Qe7 {[%clk 0:02:06.8]} 18. Qc4 {[%clk
0:02:49.1]} 18... Qd7 {[%clk 0:01:49.5]} 19. Ng5+ {[%clk 0:02:48.8]} 19... hxg5
{[%clk 0:01:49.1]} 20. Rxf8 {[%clk 0:02:48.5]} 20... Rxf8 {[%clk 0:01:49.4]} 21.
Rxf8 {[%clk 0:02:49]} 21... Nge7 {[%clk 0:01:46.4]} 22. Nf3 {[%clk 0:02:47.1]}
22... Ng6 {[%clk 0:01:43.7]} 23. Rf7 {[%clk 0:02:35.3]} 23... Qe8 {[%clk
0:01:38.4]} 24. Rxc7 {[%clk 0:02:33]} 24... Nd8 {[%clk 0:01:35]} 25. Nxg5+
{[%clk 0:02:23.1]} 25... Kh6 {[%clk 0:01:33.9]} 26. Nf3 {[%clk 0:02:23.2]} 26...
exd4 {[%clk 0:01:33.6]} 27. Qxd4 {[%clk 0:02:21.5]} 27... Nf7 {[%clk 0:01:31.3]}
28. h4 {[%clk 0:02:04.9]} 28... Nge5 {[%clk 0:01:28.3]} 29. Nxe5 {[%clk
0:02:01.2]} 29... Nxe5 {[%clk 0:01:28]} 30. Qxd6 {[%clk 0:02:00.6]} 30... Nf3+
{[%clk 0:01:23.4]} 31. Kg2 {[%clk 0:01:54.9]} 31... Nxh4+ {[%clk 0:01:23.3]} 32.
Kg3 {[%clk 0:01:54.8]} 32... Ng6 {[%clk 0:01:21.4]} 33. Qd7 {[%clk 0:01:51.1]}
33... Qf8 {[%clk 0:01:21.3]} 34. Qxe6 {[%clk 0:01:31]} 34... Qd8 {[%clk
0:01:09.8]} 35. Rc6 {[%clk 0:01:22.5]} 35... Qh4+ {[%clk 0:01:08.8]} 36. Kg2
{[%clk 0:01:21.8]} 36... Qg5 {[%clk 0:01:08.7]} 37. Rxb6 {[%clk 0:01:18.8]}
37... Kh7 {[%clk 0:01:08]} 38. Qxg6+ {[%clk 0:01:18.6]} 38... Qxg6 {[%clk
0:01:08.9]} 39. Rxg6 {[%clk 0:01:18.9]} 39... Kxg6 {[%clk 0:01:09.8]} 40. b4
{[%clk 0:01:19.3]} 1-0

[Event "Early-Titled-Tuesday-Blitz-January-23-2024"]
[Site "Chess.com"]
[Date "2024.01.23"]
[Round "9"]
[White "Ati1517"]
[Black "esrosenberg"]
[Result "0-1"]
[WhiteElo "2220"]
[BlackElo "2358"]
[TimeControl "180+1"]
[EndTime "9:43:31 PST"]
[Termination "esrosenberg won by resignation"]

1. e4 {[%clk 0:02:59.4]} 1... g6 {[%clk 0:02:59.5]} 2. d4 {[%clk 0:02:58.8]}
2... Bg7 {[%clk 0:03:00.2]} 3. Nf3 {[%clk 0:02:58.7]} 3... d6 {[%clk 0:03:00]}
4. Nc3 {[%clk 0:02:57.9]} 4... a6 {[%clk 0:03:00.1]} 5. Be2 {[%clk 0:02:55.3]}
5... Bg4 {[%clk 0:02:57.3]} 6. O-O {[%clk 0:02:55.5]} 6... Nc6 {[%clk
0:02:53.9]} 7. Be3 {[%clk 0:02:55.4]} 7... e5 {[%clk 0:02:52.4]} 8. d5 {[%clk
0:02:51.8]} 8... Bxf3 {[%clk 0:02:41.9]} 9. Bxf3 {[%clk 0:02:43.3]} 9... Nd4
{[%clk 0:02:42.4]} 10. Bxd4 {[%clk 0:02:42]} 10... exd4 {[%clk 0:02:42.4]} 11.
Ne2 {[%clk 0:02:42.1]} 11... Qf6 {[%clk 0:02:35.4]} 12. Qd3 {[%clk 0:02:37.5]}
12... c5 {[%clk 0:02:29.2]} 13. dxc6 {[%clk 0:02:37.1]} 13... bxc6 {[%clk
0:02:29.5]} 14. e5 {[%clk 0:02:37.7]} 14... dxe5 {[%clk 0:02:28.6]} 15. c3
{[%clk 0:02:36.2]} 15... Ne7 {[%clk 0:02:20.4]} 16. cxd4 {[%clk 0:02:33.5]}
16... exd4 {[%clk 0:02:20.5]} 17. Rad1 {[%clk 0:02:27]} 17... O-O {[%clk
0:02:04.2]} 18. Nxd4 {[%clk 0:02:11.9]} 18... Rad8 {[%clk 0:01:56.3]} 19. Qa3
{[%clk 0:02:06.9]} 19... Rxd4 {[%clk 0:01:44.2]} 20. Rxd4 {[%clk 0:02:06]} 20...
Qxd4 {[%clk 0:01:44.9]} 21. Qxe7 {[%clk 0:02:05.7]} 21... Qxb2 {[%clk
0:01:43.6]} 22. Bxc6 {[%clk 0:01:57.3]} 22... Qxa2 {[%clk 0:01:42.5]} 23. h3
{[%clk 0:01:54.1]} 23... Bd4 {[%clk 0:01:30.6]} 24. Qd6 {[%clk 0:01:47.4]} 24...
Qd2 {[%clk 0:01:07.5]} 25. Bd5 {[%clk 0:01:33.4]} 25... a5 {[%clk 0:01:06.6]}
26. Kh2 {[%clk 0:01:26.3]} 26... Kg7 {[%clk 0:00:59]} 27. Bf3 {[%clk 0:01:23.3]}
27... Re8 {[%clk 0:00:46.5]} 28. Rd1 {[%clk 0:01:18.9]} 28... Qxd1 {[%clk
0:00:45.6]} 29. Bxd1 {[%clk 0:01:17.6]} 29... Be5+ {[%clk 0:00:46]} 0-1

[Event "Early-Titled-Tuesday-Blitz-January-23-2024"]
[Site "Chess.com"]
[Date "2024.01.23"]
[Round "9"]
[White "Laico"]
[Black "MalyDominator"]
[Result "1-0"]
[WhiteElo "2373"]
[BlackElo "2521"]
[TimeControl "180+1"]
[EndTime "9:43:38 PST"]
[Termination "Laico won by resignation"]

1. e4 {[%clk 0:02:52.4]} 1... c5 {[%clk 0:02:59]} 2. Nc3 {[%clk 0:02:52.1]} 2...
d6 {[%clk 0:02:59.9]} 3. f4 {[%clk 0:02:51.7]} 3... Nc6 {[%clk 0:02:59]} 4. Nf3
{[%clk 0:02:52.1]} 4... g6 {[%clk 0:02:59.4]} 5. Bb5 {[%clk 0:02:52]} 5... Bg7
{[%clk 0:02:55.1]} 6. Bxc6+ {[%clk 0:02:51.9]} 6... bxc6 {[%clk 0:02:55.5]} 7.
d3 {[%clk 0:02:52.8]} 7... e6 {[%clk 0:02:56]} 8. O-O {[%clk 0:02:52.5]} 8...
Ne7 {[%clk 0:02:56.6]} 9. e5 {[%clk 0:02:51.7]} 9... d5 {[%clk 0:02:51.3]} 10.
Na4 {[%clk 0:02:43.5]} 10... O-O {[%clk 0:02:40.8]} 11. Nxc5 {[%clk 0:02:41.7]}
11... Nf5 {[%clk 0:02:39.3]} 12. Kh1 {[%clk 0:02:32.2]} 12... f6 {[%clk
0:02:39.2]} 13. d4 {[%clk 0:02:23.4]} 13... Qb6 {[%clk 0:02:38.5]} 14. c3 {[%clk
0:02:16.7]} 14... a5 {[%clk 0:02:37.5]} 15. Re1 {[%clk 0:02:13.4]} 15... a4
{[%clk 0:02:30.5]} 16. Nxa4 {[%clk 0:02:05.7]} 16... Qb5 {[%clk 0:02:21.5]} 17.
Nc5 {[%clk 0:02:04.2]} 17... fxe5 {[%clk 0:02:19.4]} 18. Nxe5 {[%clk 0:02:02.9]}
18... Nd6 {[%clk 0:02:17.1]} 19. a4 {[%clk 0:01:44.3]} 19... Qb6 {[%clk
0:02:14.8]} 20. Ned7 {[%clk 0:01:41.2]} 20... Bxd7 {[%clk 0:02:09.9]} 21. Nxd7
{[%clk 0:01:42.1]} 21... Qd8 {[%clk 0:02:07.3]} 22. Nxf8 {[%clk 0:01:41.3]}
22... Qxf8 {[%clk 0:02:08.2]} 23. Rxe6 {[%clk 0:01:40.3]} 23... Ne4 {[%clk
0:02:07.2]} 24. Qe2 {[%clk 0:01:36.8]} 24... Qf5 {[%clk 0:02:06.1]} 25. Rxc6
{[%clk 0:01:33.6]} 25... Re8 {[%clk 0:02:06.1]} 26. Be3 {[%clk 0:01:23.5]} 26...
Bh6 {[%clk 0:01:58.3]} 27. Qf3 {[%clk 0:01:21.3]} 27... Nf6 {[%clk 0:01:50.8]}
28. a5 {[%clk 0:01:08.9]} 28... Ng4 {[%clk 0:01:50.4]} 29. Bg1 {[%clk
0:01:07.8]} 29... Bxf4 {[%clk 0:01:50]} 30. a6 {[%clk 0:00:52.5]} 30... Bxh2
{[%clk 0:01:09.2]} 31. Qxf5 {[%clk 0:00:49.5]} 1-0

[Event "Early-Titled-Tuesday-Blitz-January-23-2024"]
[Site "Chess.com"]
[Date "2024.01.23"]
[Round "9"]
[White "Shuvalov"]
[Black "viktorskliarov"]
[Result "0-1"]
[WhiteElo "2485"]
[BlackElo "2674"]
[TimeControl "180+1"]
[EndTime "9:43:48 PST"]
[Termination "viktorskliarov won by resignation"]

1. d4 {[%clk 0:03:00.9]} 1... Nf6 {[%clk 0:02:55.9]} 2. c4 {[%clk 0:03:00.9]}
2... e6 {[%clk 0:02:54.7]} 3. Nc3 {[%clk 0:03:00.9]} 3... Bb4 {[%clk 0:02:54.3]}
4. e3 {[%clk 0:03:01.2]} 4... b6 {[%clk 0:02:54.2]} 5. Ne2 {[%clk 0:03:00.5]}
5... Ne4 {[%clk 0:02:54.1]} 6. Qc2 {[%clk 0:02:56.8]} 6... Bb7 {[%clk
0:02:52.4]} 7. a3 {[%clk 0:02:50.9]} 7... Bxc3+ {[%clk 0:02:47.6]} 8. Nxc3
{[%clk 0:02:49.8]} 8... Nxc3 {[%clk 0:02:47.7]} 9. Qxc3 {[%clk 0:02:48.9]} 9...
O-O {[%clk 0:02:45.2]} 10. f3 {[%clk 0:02:49]} 10... Qh4+ {[%clk 0:02:38.9]} 11.
g3 {[%clk 0:02:41.9]} 11... Qh5 {[%clk 0:02:38.1]} 12. e4 {[%clk 0:02:37.3]}
12... f5 {[%clk 0:02:37.6]} 13. d5 {[%clk 0:02:27.6]} 13... fxe4 {[%clk
0:02:10.1]} 14. fxe4 {[%clk 0:02:28.5]} 14... exd5 {[%clk 0:02:09]} 15. cxd5
{[%clk 0:02:24.8]} 15... Na6 {[%clk 0:01:58.8]} 16. Bg2 {[%clk 0:02:20.6]} 16...
Rae8 {[%clk 0:01:41.2]} 17. Be3 {[%clk 0:02:18.5]} 17... Nc5 {[%clk 0:01:10.4]}
18. Bxc5 {[%clk 0:02:11.2]} 18... bxc5 {[%clk 0:01:09.3]} 19. Rf1 {[%clk
0:01:57.1]} 19... Rxf1+ {[%clk 0:00:44.1]} 20. Kxf1 {[%clk 0:01:57.4]} 20...
Qxh2 {[%clk 0:00:43.1]} 21. Re1 {[%clk 0:01:14.7]} 21... Rf8+ {[%clk 0:00:30.1]}
22. Bf3 {[%clk 0:01:14.7]} 22... Ba6+ {[%clk 0:00:29.7]} 0-1